[Event "*** Titled Tuesday 3|2 Blitz"]
[Site "Chess.com"]
[Date "2017.03.07"]
[Round "5"]
[White "eldur16"]
[Black "arna"]
[Result "1-0"]
[WhiteElo "2336"]
[BlackElo "2255"]
[TimeControl "180+2"]
[EndTime "14:08:00 PST"]
[Termination "eldur16 won by checkmate"]

1. c4 {[%clk 0:03:02]} 1... e5 {[%clk 0:02:58.4]} 2. g3 {[%clk 0:03:02]} 2...
Nf6 {[%clk 0:02:58.9]} 3. Bg2 {[%clk 0:03:02.9]} 3... d5 {[%clk 0:02:50.5]} 4.
cxd5 {[%clk 0:03:03.3]} 4... Nxd5 {[%clk 0:02:52.4]} 5. Nf3 {[%clk 0:03:04.1]}
5... Nc6 {[%clk 0:02:52.7]} 6. O-O {[%clk 0:03:03.4]} 6... Be7 {[%clk
0:02:54.1]} 7. d4 {[%clk 0:03:03.7]} 7... e4 {[%clk 0:02:11.3]} 8. Ne5 {[%clk
0:03:04.1]} 8... Nxe5 {[%clk 0:01:27.2]} 9. dxe5 {[%clk 0:03:04.6]} 9... f5
{[%clk 0:01:28.7]} 10. exf6 {[%clk 0:03:03.2]} 10... Nxf6 {[%clk 0:01:28.2]} 11.
Nc3 {[%clk 0:02:56.7]} 11... Qxd1 {[%clk 0:01:03.8]} 12. Rxd1 {[%clk 0:02:57]}
12... Bf5 {[%clk 0:01:05.5]} 13. Nb5 {[%clk 0:02:45.9]} 13... Kf7 {[%clk
0:00:48.1]} 14. Nxc7 {[%clk 0:02:45.6]} 14... Rac8 {[%clk 0:00:49.6]} 15. Bf4
{[%clk 0:02:39.8]} 15... g5 {[%clk 0:00:24.4]} 16. Be5 {[%clk 0:02:40.2]} 16...
Rhd8 {[%clk 0:00:26]} 17. Nb5 {[%clk 0:02:32.3]} 17... a6 {[%clk 0:00:10]} 18.
Nc3 {[%clk 0:02:21.7]} 18... e3 {[%clk 0:00:11.1]} 19. fxe3 {[%clk 0:02:19.2]}
19... Ke6 {[%clk 0:00:11.9]} 20. Bd4 {[%clk 0:02:17.6]} 20... b5 {[%clk
0:00:10.9]} 21. a3 {[%clk 0:02:17.6]} 21... h6 {[%clk 0:00:08.2]} 22. h3 {[%clk
0:02:16]} 22... Bg6 {[%clk 0:00:09]} 23. g4 {[%clk 0:02:13.3]} 23... Rd7 {[%clk
0:00:08.3]} 24. Rf1 {[%clk 0:02:10.5]} 24... Rdc7 {[%clk 0:00:06.7]} 25. Rad1
{[%clk 0:02:03.5]} 25... Rd7 {[%clk 0:00:07.9]} 26. Kh1 {[%clk 0:01:52.7]} 26...
Rcd8 {[%clk 0:00:09.2]} 27. Bc6 {[%clk 0:01:46]} 27... Rd6 {[%clk 0:00:09.3]}
28. Bf3 {[%clk 0:01:46.4]} 28... R6d7 {[%clk 0:00:09.9]} 29. Kg2 {[%clk
0:01:47.2]} 29... Rc8 {[%clk 0:00:10.4]} 30. e4 {[%clk 0:01:43.7]} 30... Rb8
{[%clk 0:00:10.5]} 31. e5 {[%clk 0:01:39.6]} 31... Ne8 {[%clk 0:00:09.7]} 32. e3
{[%clk 0:01:29.8]} 32... Nc7 {[%clk 0:00:09.6]} 33. Ne4 {[%clk 0:01:29]} 33...
Nd5 {[%clk 0:00:07.5]} 34. Rc1 {[%clk 0:01:28.8]} 34... Rc7 {[%clk 0:00:07.8]}
35. Nf6 {[%clk 0:01:26.1]} 35... Rxc1 {[%clk 0:00:07.1]} 36. Bxd5# {[%clk
0:01:26.1]} 1-0

[Event "*** Titled Tuesday 3|2 Blitz"]
[Site "Chess.com"]
[Date "2017.03.07"]
[Round "5"]
[White "kikydu96"]
[Black "MatBobula"]
[Result "1-0"]
[WhiteElo "2319"]
[BlackElo "2272"]
[TimeControl "180+2"]
[EndTime "14:08:17 PST"]
[Termination "kikydu96 won by resignation"]

1. e4 {[%clk 0:03:01.9]} 1... e6 {[%clk 0:03:00.2]} 2. d4 {[%clk 0:03:02.1]}
2... d5 {[%clk 0:03:01.4]} 3. Nc3 {[%clk 0:03:01.8]} 3... Bb4 {[%clk 0:03:01.6]}
4. e5 {[%clk 0:03:02.9]} 4... c5 {[%clk 0:03:02.6]} 5. a3 {[%clk 0:03:01.7]}
5... Bxc3+ {[%clk 0:03:03.9]} 6. bxc3 {[%clk 0:03:03]} 6... Ne7 {[%clk
0:03:05.6]} 7. Qg4 {[%clk 0:02:55.4]} 7... O-O {[%clk 0:03:06.4]} 8. h4 {[%clk
0:02:54.8]} 8... Nbc6 {[%clk 0:03:01.2]} 9. Nh3 {[%clk 0:02:50.9]} 9... f5
{[%clk 0:03:00.1]} 10. exf6 {[%clk 0:02:50.7]} 10... Rxf6 {[%clk 0:03:00.6]} 11.
Bg5 {[%clk 0:02:44.3]} 11... e5 {[%clk 0:02:51]} 12. Qd1 {[%clk 0:02:19.5]}
12... Rf5 {[%clk 0:02:44.1]} 13. Bd3 {[%clk 0:02:09.5]} 13... e4 {[%clk
0:02:44.5]} 14. Be2 {[%clk 0:02:10.9]} 14... Qa5 {[%clk 0:02:23.7]} 15. O-O
{[%clk 0:02:05.5]} 15... Qxc3 {[%clk 0:02:19.7]} 16. Bg4 {[%clk 0:02:00.3]}
16... Rf8 {[%clk 0:01:52]} 17. dxc5 {[%clk 0:01:54.2]} 17... Qxc5 {[%clk
0:01:45.7]} 18. Nf4 {[%clk 0:01:46.5]} 18... h6 {[%clk 0:01:38]} 19. Be6+ {[%clk
0:01:37.3]} 19... Kh8 {[%clk 0:01:23.9]} 20. Qh5 {[%clk 0:01:35.5]} 20... Rxf4
{[%clk 0:01:13.1]} 21. Bxc8 {[%clk 0:01:22.5]} 21... d4 {[%clk 0:00:42.6]} 22.
Qe8+ {[%clk 0:01:19.3]} 22... Kh7 {[%clk 0:00:38.4]} 23. Bxf4 {[%clk 0:01:07.8]}
23... Rxc8 {[%clk 0:00:39.3]} 24. Qf7 {[%clk 0:01:07.2]} 24... Qxc2 {[%clk
0:00:28.7]} 25. Rac1 {[%clk 0:01:04.2]} 25... Qb2 {[%clk 0:00:26.2]} 26. Rb1
{[%clk 0:01:03.7]} 26... Qxa3 {[%clk 0:00:26.5]} 27. Rxb7 {[%clk 0:01:04.3]}
27... Qc5 {[%clk 0:00:21.2]} 28. Rc1 {[%clk 0:01:04]} 28... Qf5 {[%clk
0:00:20.8]} 29. Rxe7 {[%clk 0:00:51.3]} 29... Nxe7 {[%clk 0:00:19.5]} 30. Qxf5+
{[%clk 0:00:52.1]} 30... Nxf5 {[%clk 0:00:19.3]} 31. Rxc8 {[%clk 0:00:53.7]}
31... d3 {[%clk 0:00:20.5]} 32. Re8 {[%clk 0:00:49.6]} 32... Nd4 {[%clk
0:00:20.1]} 33. Rxe4 {[%clk 0:00:48.4]} 33... Ne2+ {[%clk 0:00:21.1]} 34. Kf1
{[%clk 0:00:48.9]} 34... d2 {[%clk 0:00:21.2]} 35. Kxe2 {[%clk 0:00:49.7]} 1-0

[Event "*** Titled Tuesday 3|2 Blitz"]
[Site "Chess.com"]
[Date "2017.03.07"]
[Round "5"]
[White "RoelandPruijssers"]
[Black "VMikhalevski"]
[Result "0-1"]
[WhiteElo "2500"]
[BlackElo "2552"]
[TimeControl "180+2"]
[EndTime "14:08:18 PST"]
[Termination "VMikhalevski won by resignation"]

1. e4 {[%clk 0:02:59.9]} 1... e5 {[%clk 0:03:00.4]} 2. Nf3 {[%clk 0:03:00.5]}
2... Nc6 {[%clk 0:03:01.3]} 3. Bb5 {[%clk 0:03:00.8]} 3... a6 {[%clk 0:03:01.8]}
4. Ba4 {[%clk 0:03:01.8]} 4... Nf6 {[%clk 0:03:02.6]} 5. O-O {[%clk 0:03:02.5]}
5... Nxe4 {[%clk 0:03:04.2]} 6. d4 {[%clk 0:03:02.3]} 6... b5 {[%clk 0:03:05.8]}
7. Bb3 {[%clk 0:03:01.2]} 7... d5 {[%clk 0:03:07.5]} 8. dxe5 {[%clk 0:03:02.7]}
8... Be6 {[%clk 0:03:08]} 9. c3 {[%clk 0:02:59.4]} 9... Bc5 {[%clk 0:03:08]} 10.
Qd3 {[%clk 0:02:59.9]} 10... O-O {[%clk 0:03:07.3]} 11. Nbd2 {[%clk 0:02:50.5]}
11... f5 {[%clk 0:03:07]} 12. exf6 {[%clk 0:02:50.5]} 12... Nxf6 {[%clk
0:03:07.7]} 13. Bc2 {[%clk 0:02:29.7]} 13... Kh8 {[%clk 0:03:06]} 14. Nb3 {[%clk
0:02:28.6]} 14... Bd6 {[%clk 0:02:55.2]} 15. Bg5 {[%clk 0:02:19.8]} 15... Bg8
{[%clk 0:02:45.1]} 16. a4 {[%clk 0:02:00.5]} 16... b4 {[%clk 0:02:31.4]} 17. h3
{[%clk 0:02:01.4]} 17... Qe8 {[%clk 0:02:21.5]} 18. Rae1 {[%clk 0:01:04.9]}
18... Qh5 {[%clk 0:02:21.2]} 19. Bd1 {[%clk 0:01:06]} 19... Ne4 {[%clk
0:02:15.8]} 20. Be3 {[%clk 0:01:00.5]} 20... Qg6 {[%clk 0:02:11.6]} 21. Nfd4
{[%clk 0:00:57.4]} 21... Ne5 {[%clk 0:02:10.8]} 22. Qe2 {[%clk 0:00:49.7]} 22...
c5 {[%clk 0:02:10]} 23. Nc2 {[%clk 0:00:51.1]} 23... Nf3+ {[%clk 0:02:03.2]} 24.
Kh1 {[%clk 0:00:49.7]} 24... Nh4 {[%clk 0:02:02.9]} 25. Qg4 {[%clk 0:00:47.9]}
25... Qxg4 {[%clk 0:01:54.4]} 26. hxg4 {[%clk 0:00:41.5]} 26... d4 {[%clk
0:01:50.3]} 27. Bxd4 {[%clk 0:00:36.8]} 27... Bxb3 {[%clk 0:01:47.2]} 28. Rxe4
{[%clk 0:00:32.2]} 28... cxd4 {[%clk 0:01:46.6]} 29. Rxd4 {[%clk 0:00:31.9]}
29... Bc5 {[%clk 0:01:45.3]} 30. Rd2 {[%clk 0:00:22.6]} 30... bxc3 {[%clk
0:01:43.1]} 31. bxc3 {[%clk 0:00:23.1]} 31... Rad8 {[%clk 0:01:40.7]} 32. Nd4
{[%clk 0:00:24.2]} 32... Bxd1 {[%clk 0:01:37.6]} 33. Rfxd1 {[%clk 0:00:24.1]}
33... Rde8 {[%clk 0:01:28.4]} 34. g3 {[%clk 0:00:16.9]} 34... Nf3 {[%clk
0:01:25.9]} 35. Nxf3 {[%clk 0:00:14]} 35... Rxf3 {[%clk 0:01:26.2]} 36. Rd8
{[%clk 0:00:15.7]} 36... Rg8 {[%clk 0:01:24.7]} 37. Rxg8+ {[%clk 0:00:13.9]}
37... Kxg8 {[%clk 0:01:25]} 38. Rd5 {[%clk 0:00:15.7]} 38... Rxc3 {[%clk
0:01:18.8]} 39. f4 {[%clk 0:00:13.6]} 0-1

[Event "*** Titled Tuesday 3|2 Blitz"]
[Site "Chess.com"]
[Date "2017.03.07"]
[Round "5"]
[White "olomi007"]
[Black "oggy1984"]
[Result "1-0"]
[WhiteElo "2486"]
[BlackElo "2354"]
[TimeControl "180+2"]
[EndTime "14:08:18 PST"]
[Termination "olomi007 won on time"]

1. e4 {[%clk 0:03:02]} 1... e5 {[%clk 0:03:00.5]} 2. Nf3 {[%clk 0:03:02.9]} 2...
Nc6 {[%clk 0:03:01.3]} 3. Bb5 {[%clk 0:03:03.8]} 3... a6 {[%clk 0:03:01.8]} 4.
Ba4 {[%clk 0:03:04.5]} 4... Nf6 {[%clk 0:03:00.9]} 5. O-O {[%clk 0:03:05.4]}
5... Be7 {[%clk 0:02:52.1]} 6. Re1 {[%clk 0:03:05.9]} 6... b5 {[%clk 0:02:51.3]}
7. Bb3 {[%clk 0:03:06.3]} 7... d6 {[%clk 0:02:52.1]} 8. c3 {[%clk 0:03:07.7]}
8... Na5 {[%clk 0:02:50.1]} 9. Bc2 {[%clk 0:03:07.8]} 9... c5 {[%clk 0:02:51]}
10. d4 {[%clk 0:03:07.4]} 10... Qc7 {[%clk 0:02:47.6]} 11. Nbd2 {[%clk
0:03:05.1]} 11... O-O {[%clk 0:02:41.9]} 12. Nf1 {[%clk 0:03:03.7]} 12... Bg4
{[%clk 0:02:37.4]} 13. d5 {[%clk 0:03:02.1]} 13... Rfe8 {[%clk 0:02:29.9]} 14.
h3 {[%clk 0:03:01.1]} 14... Bh5 {[%clk 0:02:03]} 15. b3 {[%clk 0:02:53.7]} 15...
c4 {[%clk 0:01:59]} 16. b4 {[%clk 0:02:54.1]} 16... Nb7 {[%clk 0:01:59.2]} 17.
a4 {[%clk 0:02:55.4]} 17... Nd7 {[%clk 0:01:40.1]} 18. g4 {[%clk 0:02:55.6]}
18... Bg6 {[%clk 0:01:40.1]} 19. Ng3 {[%clk 0:02:56.7]} 19... Nb6 {[%clk
0:01:38.1]} 20. a5 {[%clk 0:02:52.7]} 20... Nd7 {[%clk 0:01:38.4]} 21. Be3
{[%clk 0:02:51.6]} 21... Qd8 {[%clk 0:01:33.1]} 22. Kh2 {[%clk 0:02:51.2]} 22...
h6 {[%clk 0:01:30.7]} 23. Qd2 {[%clk 0:02:51.3]} 23... Nf8 {[%clk 0:01:20.6]}
24. Nf5 {[%clk 0:02:49.1]} 24... Nh7 {[%clk 0:01:14.6]} 25. Rg1 {[%clk
0:02:36.1]} 25... Bg5 {[%clk 0:01:07.9]} 26. h4 {[%clk 0:02:24.2]} 26... Bxe3
{[%clk 0:01:03.9]} 27. Qxe3 {[%clk 0:02:25.1]} 27... Bxf5 {[%clk 0:00:48.3]} 28.
gxf5 {[%clk 0:02:23.4]} 28... Qf6 {[%clk 0:00:46.1]} 29. Rg4 {[%clk 0:02:24.2]}
29... Kh8 {[%clk 0:00:29.1]} 30. Rag1 {[%clk 0:02:24]} 30... Rg8 {[%clk
0:00:29.7]} 31. Kh3 {[%clk 0:02:21.5]} 31... Nd8 {[%clk 0:00:16.3]} 32. Nh2
{[%clk 0:02:16.4]} 32... Qe7 {[%clk 0:00:14.6]} 33. Qxh6 {[%clk 0:02:12.5]}
33... Qf6 {[%clk 0:00:04.8]} 34. Qe3 {[%clk 0:02:08.8]} 34... Nb7 {[%clk
0:00:04.5]} 35. R4g3 {[%clk 0:02:00.3]} 35... Qh6 {[%clk 0:00:05.1]} 36. Qb6
{[%clk 0:01:28.8]} 36... Nd8 {[%clk 0:00:04.9]} 37. Ng4 {[%clk 0:01:29.1]} 37...
Qh5 {[%clk 0:00:02.4]} 38. Qxd6 {[%clk 0:01:19.6]} 1-0

[Event "*** Titled Tuesday 3|2 Blitz"]
[Site "Chess.com"]
[Date "2017.03.07"]
[Round "5"]
[White "plouarzel"]
[Black "Rating-Schmating"]
[Result "1-0"]
[WhiteElo "2345"]
[BlackElo "2266"]
[TimeControl "180+2"]
[EndTime "14:08:21 PST"]
[Termination "plouarzel won by resignation"]

1. d4 {[%clk 0:03:02]} 1... Nf6 {[%clk 0:03:00.2]} 2. c4 {[%clk 0:03:03]} 2...
e6 {[%clk 0:03:00.5]} 3. Nc3 {[%clk 0:03:03.8]} 3... Bb4 {[%clk 0:03:01]} 4. e3
{[%clk 0:03:05.1]} 4... c5 {[%clk 0:02:59.4]} 5. Bd3 {[%clk 0:03:05.4]} 5... b6
{[%clk 0:02:57.9]} 6. Nf3 {[%clk 0:03:05.7]} 6... Nc6 {[%clk 0:02:56.9]} 7. O-O
{[%clk 0:03:03.9]} 7... Bxc3 {[%clk 0:02:54]} 8. bxc3 {[%clk 0:03:04.6]} 8... d6
{[%clk 0:02:52.7]} 9. e4 {[%clk 0:02:44.8]} 9... e5 {[%clk 0:02:48.3]} 10. h3
{[%clk 0:02:46.1]} 10... O-O {[%clk 0:02:45.3]} 11. Be3 {[%clk 0:02:46.9]} 11...
Re8 {[%clk 0:02:42.8]} 12. d5 {[%clk 0:02:44]} 12... Na5 {[%clk 0:02:43.4]} 13.
Nd2 {[%clk 0:02:43.9]} 13... Ba6 {[%clk 0:02:39]} 14. Qe2 {[%clk 0:02:40.5]}
14... Qd7 {[%clk 0:02:38.3]} 15. a4 {[%clk 0:02:39.4]} 15... h6 {[%clk
0:02:31.8]} 16. f4 {[%clk 0:02:28]} 16... exf4 {[%clk 0:02:26.9]} 17. Bxf4
{[%clk 0:02:29.7]} 17... Qe7 {[%clk 0:02:25.5]} 18. Qf3 {[%clk 0:02:23.5]} 18...
Nd7 {[%clk 0:02:25.5]} 19. Qg3 {[%clk 0:02:15.2]} 19... Ne5 {[%clk 0:02:22.4]}
20. Bxh6 {[%clk 0:02:16.3]} 20... f6 {[%clk 0:02:12.8]} 21. Be2 {[%clk
0:02:16.2]} 21... Naxc4 {[%clk 0:02:05.7]} 22. Nf3 {[%clk 0:02:02.7]} 22...
Nxf3+ {[%clk 0:01:57.4]} 23. Rxf3 {[%clk 0:02:03.2]} 23... Qf7 {[%clk
0:01:33.3]} 24. Raf1 {[%clk 0:01:55.4]} 24... Nd2 {[%clk 0:01:09.7]} 25. Bxa6
{[%clk 0:01:40.2]} 25... Nxf3+ {[%clk 0:00:52.7]} 26. gxf3 {[%clk 0:01:19.2]}
26... Re5 {[%clk 0:00:41.3]} 27. Kh2 {[%clk 0:00:51.7]} 27... g5 {[%clk
0:00:33.4]} 28. f4 {[%clk 0:00:47]} 28... Rxe4 {[%clk 0:00:31.2]} 29. fxg5
{[%clk 0:00:47]} 29... f5 {[%clk 0:00:18.3]} 30. g6 {[%clk 0:00:45.4]} 30... Qf6
{[%clk 0:00:18.8]} 31. Bd3 {[%clk 0:00:42]} 31... Re5 {[%clk 0:00:12.9]} 32. Bf4
{[%clk 0:00:37.9]} 32... Rxd5 {[%clk 0:00:12.5]} 33. Bc4 {[%clk 0:00:39.4]} 1-0

[Event "*** Titled Tuesday 3|2 Blitz"]
[Site "Chess.com"]
[Date "2017.03.07"]
[Round "5"]
[White "vpantev"]
[Black "macko06"]
[Result "1-0"]
[WhiteElo "2460"]
[BlackElo "2330"]
[TimeControl "180+2"]
[EndTime "14:08:28 PST"]
[Termination "vpantev won by resignation"]

1. d4 {[%clk 0:03:02]} 1... Nf6 {[%clk 0:03:00.9]} 2. Nf3 {[%clk 0:02:59.5]}
2... e6 {[%clk 0:03:00.7]} 3. g3 {[%clk 0:02:55.1]} 3... Be7 {[%clk 0:02:59.1]}
4. Bg2 {[%clk 0:02:55.9]} 4... O-O {[%clk 0:03:00.7]} 5. O-O {[%clk 0:02:57.4]}
5... d5 {[%clk 0:03:01.1]} 6. c4 {[%clk 0:02:58.3]} 6... dxc4 {[%clk 0:03:02.4]}
7. Nbd2 {[%clk 0:02:56]} 7... b5 {[%clk 0:02:51.6]} 8. a4 {[%clk 0:02:55.9]}
8... c6 {[%clk 0:02:49.3]} 9. Ne5 {[%clk 0:02:56.4]} 9... Nd5 {[%clk 0:02:49.7]}
10. Ne4 {[%clk 0:02:36.2]} 10... Bb7 {[%clk 0:02:40.8]} 11. h4 {[%clk
0:02:33.5]} 11... Nd7 {[%clk 0:02:29.7]} 12. Nf3 {[%clk 0:02:31]} 12... a6
{[%clk 0:02:23.3]} 13. Qc2 {[%clk 0:02:30.6]} 13... N5f6 {[%clk 0:02:18.2]} 14.
Nxf6+ {[%clk 0:02:23.4]} 14... Nxf6 {[%clk 0:02:18.4]} 15. b3 {[%clk 0:02:24.5]}
15... cxb3 {[%clk 0:02:12.8]} 16. Qxb3 {[%clk 0:02:25.4]} 16... Qd5 {[%clk
0:02:08.5]} 17. Qc2 {[%clk 0:02:16.2]} 17... c5 {[%clk 0:02:08.1]} 18. Ne1
{[%clk 0:02:13.1]} 18... Qd7 {[%clk 0:02:04.7]} 19. Bxb7 {[%clk 0:02:12.8]}
19... Qxb7 {[%clk 0:02:06.6]} 20. dxc5 {[%clk 0:02:13.5]} 20... Rac8 {[%clk
0:02:00.3]} 21. Nd3 {[%clk 0:02:13.3]} 21... Ne4 {[%clk 0:01:46.8]} 22. axb5
{[%clk 0:02:11.8]} 22... Qxb5 {[%clk 0:01:39.9]} 23. Be3 {[%clk 0:02:10.6]}
23... Bf6 {[%clk 0:01:05.6]} 24. Rfb1 {[%clk 0:02:01.6]} 24... Qd7 {[%clk
0:00:53.2]} 25. Rxa6 {[%clk 0:01:50.6]} 25... Nc3 {[%clk 0:00:49.9]} 26. Rb3
{[%clk 0:01:45.3]} 26... Nd5 {[%clk 0:00:51]} 27. Bd2 {[%clk 0:01:41.8]} 27...
Qc7 {[%clk 0:00:43.7]} 28. Rba3 {[%clk 0:01:37.9]} 28... Bd4 {[%clk 0:00:42.2]}
29. Kg2 {[%clk 0:01:16.2]} 29... Qb7 {[%clk 0:00:35]} 30. c6 {[%clk 0:01:14.5]}
30... Qb5 {[%clk 0:00:21.9]} 31. R3a5 {[%clk 0:01:10.4]} 31... Qb8 {[%clk
0:00:22.4]} 32. Qc4 {[%clk 0:01:10.1]} 32... Bf6 {[%clk 0:00:19.4]} 33. h5
{[%clk 0:01:10]} 33... h6 {[%clk 0:00:19.9]} 34. Nf4 {[%clk 0:01:07.3]} 34...
Qb2 {[%clk 0:00:15.9]} 35. Nxd5 {[%clk 0:01:02.3]} 35... exd5 {[%clk 0:00:17.3]}
36. Qd3 {[%clk 0:01:02]} 36... d4 {[%clk 0:00:16.5]} 37. Bf4 {[%clk 0:01:01.4]}
37... Rfe8 {[%clk 0:00:16.4]} 38. Ra2 {[%clk 0:01:01.9]} 38... Qb5 {[%clk
0:00:16.4]} 39. Qxb5 {[%clk 0:01:01.9]} 1-0

[Event "*** Titled Tuesday 3|2 Blitz"]
[Site "Chess.com"]
[Date "2017.03.07"]
[Round "5"]
[White "Rock700chess"]
[Black "Tash_Boy"]
[Result "0-1"]
[WhiteElo "2239"]
[BlackElo "2505"]
[TimeControl "180+2"]
[EndTime "14:08:29 PST"]
[Termination "Tash_Boy won by resignation"]

1. e4 {[%clk 0:03:02]} 1... e5 {[%clk 0:03:01.3]} 2. Nf3 {[%clk 0:03:02.1]} 2...
Nc6 {[%clk 0:03:02.2]} 3. Bc4 {[%clk 0:03:03]} 3... Bc5 {[%clk 0:03:02.3]} 4. c3
{[%clk 0:03:02.6]} 4... Nf6 {[%clk 0:03:02.3]} 5. d3 {[%clk 0:03:00.4]} 5... a6
{[%clk 0:03:02.8]} 6. Bb3 {[%clk 0:02:58.7]} 6... Ba7 {[%clk 0:03:03.3]} 7. Qe2
{[%clk 0:02:56.4]} 7... d6 {[%clk 0:02:58.7]} 8. Nbd2 {[%clk 0:02:17.3]} 8...
O-O {[%clk 0:02:57.3]} 9. h3 {[%clk 0:02:13]} 9... d5 {[%clk 0:02:55.6]} 10. Nf1
{[%clk 0:02:00.8]} 10... dxe4 {[%clk 0:02:56.1]} 11. dxe4 {[%clk 0:02:00.4]}
11... Qe7 {[%clk 0:02:57.5]} 12. g4 {[%clk 0:01:57.4]} 12... Be6 {[%clk
0:02:56.1]} 13. Ng3 {[%clk 0:01:55.5]} 13... Rad8 {[%clk 0:02:50.5]} 14. Nf5
{[%clk 0:01:48.7]} 14... Bxf5 {[%clk 0:02:50.6]} 15. gxf5 {[%clk 0:01:45.3]}
15... Na5 {[%clk 0:02:52]} 16. Bc2 {[%clk 0:01:41.5]} 16... Rd7 {[%clk
0:02:47.5]} 17. Bd2 {[%clk 0:01:27.5]} 17... Rfd8 {[%clk 0:02:42]} 18. O-O-O
{[%clk 0:01:21.5]} 18... b5 {[%clk 0:02:41.4]} 19. Rhg1 {[%clk 0:01:15.7]} 19...
Nc4 {[%clk 0:02:40.5]} 20. Bh6 {[%clk 0:01:10.1]} 20... Rxd1+ {[%clk 0:02:37.8]}
21. Bxd1 {[%clk 0:01:08.7]} 21... g6 {[%clk 0:02:37.3]} 22. fxg6 {[%clk
0:00:58.1]} 22... hxg6 {[%clk 0:02:37.2]} 23. Bg5 {[%clk 0:01:00]} 23... Kg7
{[%clk 0:02:26.7]} 24. h4 {[%clk 0:00:57.3]} 24... Qe6 {[%clk 0:02:27.6]} 25. h5
{[%clk 0:00:54]} 25... Rd7 {[%clk 0:02:02]} 26. hxg6 {[%clk 0:00:39.1]} 26...
fxg6 {[%clk 0:02:02.4]} 27. Nh4 {[%clk 0:00:40.1]} 27... Ng8 {[%clk 0:01:49.1]}
28. Bb3 {[%clk 0:00:29.7]} 28... Rf7 {[%clk 0:01:46.8]} 29. Rg2 {[%clk
0:00:20.9]} 29... Qh3 {[%clk 0:01:36.2]} 30. Bxc4 {[%clk 0:00:18.4]} 30... bxc4
{[%clk 0:01:36.6]} 31. Rg3 {[%clk 0:00:11.5]} 31... Qh1+ {[%clk 0:01:35.3]} 32.
Qd1 {[%clk 0:00:11.3]} 32... Qxd1+ {[%clk 0:01:34.4]} 33. Kxd1 {[%clk
0:00:13.2]} 33... Bxf2 {[%clk 0:01:35.5]} 34. Rg2 {[%clk 0:00:11.9]} 34... Bxh4
{[%clk 0:01:36.2]} 35. Bxh4 {[%clk 0:00:12.7]} 35... Nf6 {[%clk 0:01:37.7]} 36.
Bxf6+ {[%clk 0:00:10.9]} 36... Rxf6 {[%clk 0:01:39.6]} 37. Ke2 {[%clk
0:00:09.4]} 37... Rf4 {[%clk 0:01:39.3]} 38. Ke3 {[%clk 0:00:08.9]} 38... Rh4
{[%clk 0:01:40.7]} 39. Rf2 {[%clk 0:00:08.4]} 39... Rh3+ {[%clk 0:01:41.6]} 40.
Rf3 {[%clk 0:00:08.5]} 40... Rxf3+ {[%clk 0:01:39.8]} 41. Kxf3 {[%clk
0:00:10.4]} 41... g5 {[%clk 0:01:38.2]} 42. Kg4 {[%clk 0:00:08.7]} 42... Kg6
{[%clk 0:01:39.2]} 43. Kf3 {[%clk 0:00:08]} 43... Kh5 {[%clk 0:01:39.8]} 44. Kg2
{[%clk 0:00:06.6]} 44... Kg4 {[%clk 0:01:40.5]} 45. b4 {[%clk 0:00:05.2]} 45...
Kf4 {[%clk 0:01:40.4]} 0-1

[Event "*** Titled Tuesday 3|2 Blitz"]
[Site "Chess.com"]
[Date "2017.03.07"]
[Round "5"]
[White "Anton_Demchenko"]
[Black "PelinGorki"]
[Result "1/2-1/2"]
[WhiteElo "2609"]
[BlackElo "2431"]
[TimeControl "180+2"]
[EndTime "14:08:43 PST"]
[Termination "Game drawn by repetition"]

1. e4 {[%clk 0:03:01.9]} 1... d6 {[%clk 0:02:59.7]} 2. d4 {[%clk 0:03:02.3]}
2... Nf6 {[%clk 0:03:00.3]} 3. Nc3 {[%clk 0:03:04.2]} 3... c6 {[%clk 0:03:01.4]}
4. Nf3 {[%clk 0:03:04]} 4... Bg4 {[%clk 0:03:00.7]} 5. Be3 {[%clk 0:02:54.6]}
5... e6 {[%clk 0:03:01.4]} 6. h3 {[%clk 0:02:55]} 6... Bh5 {[%clk 0:03:00.7]} 7.
Be2 {[%clk 0:02:47.7]} 7... Be7 {[%clk 0:03:00.7]} 8. O-O {[%clk 0:02:47.8]}
8... d5 {[%clk 0:02:56.9]} 9. e5 {[%clk 0:02:47.2]} 9... Nfd7 {[%clk 0:02:57.1]}
10. Nd2 {[%clk 0:02:40.4]} 10... Bg6 {[%clk 0:02:55.6]} 11. f4 {[%clk
0:02:38.5]} 11... c5 {[%clk 0:02:55.1]} 12. Nf3 {[%clk 0:02:39.1]} 12... Nc6
{[%clk 0:02:54.4]} 13. Kh1 {[%clk 0:02:33.2]} 13... h5 {[%clk 0:02:51.7]} 14. a3
{[%clk 0:02:31.8]} 14... h4 {[%clk 0:02:50.2]} 15. Qd2 {[%clk 0:02:28.4]} 15...
a6 {[%clk 0:02:47.8]} 16. Rae1 {[%clk 0:02:20.7]} 16... b5 {[%clk 0:02:48.5]}
17. dxc5 {[%clk 0:02:19.1]} 17... Bxc5 {[%clk 0:02:47.6]} 18. Bxc5 {[%clk
0:02:12.9]} 18... Nxc5 {[%clk 0:02:49.5]} 19. Nd4 {[%clk 0:02:14.5]} 19... Nxd4
{[%clk 0:02:42.2]} 20. Qxd4 {[%clk 0:02:15.1]} 20... Rc8 {[%clk 0:02:44.1]} 21.
Bd3 {[%clk 0:01:37.7]} 21... Nxd3 {[%clk 0:02:41.5]} 22. cxd3 {[%clk 0:01:39.1]}
22... Bf5 {[%clk 0:02:42.3]} 23. Nd1 {[%clk 0:01:37.7]} 23... Qc7 {[%clk
0:02:33.8]} 24. Ne3 {[%clk 0:01:30.6]} 24... g6 {[%clk 0:02:35.4]} 25. Qb4
{[%clk 0:01:02.5]} 25... Bxd3 {[%clk 0:02:27.9]} 26. Rg1 {[%clk 0:01:03.3]}
26... Bf5 {[%clk 0:02:19.7]} 27. Rd1 {[%clk 0:00:47.5]} 27... Qc5 {[%clk
0:02:16.1]} 28. Qe1 {[%clk 0:00:46.6]} 28... Ke7 {[%clk 0:02:12.9]} 29. Qd2
{[%clk 0:00:43.5]} 29... Qa7 {[%clk 0:02:00.9]} 30. Qf2 {[%clk 0:00:43.7]} 30...
Kf8 {[%clk 0:01:57.1]} 31. Rc1 {[%clk 0:00:41.1]} 31... Rxc1 {[%clk 0:01:50.5]}
32. Rxc1 {[%clk 0:00:43]} 32... Qb7 {[%clk 0:01:45]} 33. b4 {[%clk 0:00:31.2]}
33... Kg7 {[%clk 0:01:41.4]} 34. Rc5 {[%clk 0:00:32.1]} 34... Rc8 {[%clk
0:01:40.8]} 35. Qxh4 {[%clk 0:00:29.5]} 35... Rxc5 {[%clk 0:01:41.9]} 36. bxc5
{[%clk 0:00:31.4]} 36... Qc7 {[%clk 0:01:40.9]} 37. Qf6+ {[%clk 0:00:28.6]}
37... Kg8 {[%clk 0:01:37.3]} 38. Nxf5 {[%clk 0:00:29.7]} 38... gxf5 {[%clk
0:01:36.5]} 39. Qg5+ {[%clk 0:00:30.5]} 39... Kf8 {[%clk 0:01:36.1]} 40. h4
{[%clk 0:00:25.8]} 40... Qxc5 {[%clk 0:01:32.9]} 41. Qd8+ {[%clk 0:00:24.1]}
41... Kg7 {[%clk 0:01:34.2]} 42. Qg5+ {[%clk 0:00:25.4]} 42... Kf8 {[%clk
0:01:35.2]} 43. Qd8+ {[%clk 0:00:20.4]} 43... Kg7 {[%clk 0:01:35.8]} 44. Qf6+
{[%clk 0:00:18.6]} 44... Kg8 {[%clk 0:01:33.4]} 45. Qg5+ {[%clk 0:00:17.8]}
45... Kf8 {[%clk 0:01:34.7]} 1/2-1/2